fUST/lending_fUST_20250223
["ID","MTS","AMOUNT","RATE_DAILY","PERIOD"]
[354109783,1740249038197,-151.0,0.0001378,2]
[354109784,1740249038207,-257.064989,0.0001378,2]
[354109785,1740249038320,-234.68837865,0.0001378,2]
[354109786,1740249038333,-151.0,0.0001378,2]
[354109787,1740249038344,-276.121785,0.0001378,2]
[354109788,1740249038353,-151.0,0.0001378,2]
[354109789,1740249038364,-500.0,0.0001378,2]
[354109790,1740249038374,-500.0,0.0001378,2]
[354109791,1740249038383,-500.0,0.0001378,2]
[354109792,1740249038392,-911.16,0.0001378,2]
[354109793,1740249038401,-500.0,0.0001378,2]
[354109794,1740249038411,-1637.38,0.0001378,2]
[354109795,1740249038420,-500.0,0.0001378,2]
[354109796,1740249038429,-500.0,0.0001378,2]
[354109797,1740249038439,-500.0,0.0001378,2]
[354109798,1740249038448,-500.0,0.0001378,2]
[354109799,1740249038457,-500.0,0.0001378,2]
[354109800,1740249038466,-500.0,0.0001378,2]
[354109801,1740249038475,-500.0,0.0001378,2]
[354109802,1740249038484,-778.8,0.0001378,2]
[354109803,1740249038493,-500.0,0.0001378,2]
[354109804,1740249038502,-500.0,0.0001378,2]
[354109805,1740249038511,-500.0,0.0001378,2]
[354109806,1740249038521,-500.0,0.0001378,2]
[354109807,1740249038531,-348.042031,0.0001378,2]
[354109808,1740249038540,-638.9,0.0001378,2]
[354109809,1740249038548,-500.0,0.0001378,2]
[354109810,1740249038558,-348.042031,0.0001378,2]
[354109811,1740249038568,-500.0,0.0001378,2]
[354109812,1740249038578,-500.0,0.0001378,2]
[354109813,1740249038587,-500.0,0.0001378,2]
[354109814,1740249038596,-151.0,0.0001378,2]
[354109815,1740249038605,-151.0,0.0001378,2]
[354109816,1740249038614,-500.0,0.0001378,2]
[354109817,1740249038624,-151.0,0.0001378,2]
[354109818,1740249038633,-500.0,0.0001378,2]
[354109819,1740249038643,-180.297078,0.0001378,2]
[354109820,1740249038653,-151.0,0.0001378,2]
[354109821,1740249038662,-151.0,0.0001378,2]
[354109822,1740249038672,-500.0,0.0001378,2]
[354109823,1740249038684,-500.0,0.0001378,2]
[354109824,1740249038694,-500.0,0.0001378,2]
[354109825,1740249038703,-500.0,0.0001378,2]
[354109826,1740249038712,-500.0,0.0001378,2]
[354109827,1740249038722,-500.0,0.0001378,2]
[354109828,1740249038731,-500.0,0.0001378,2]
[354109829,1740249038740,-500.0,0.0001378,2]
[354109830,1740249038750,-500.0,0.0001378,2]
[354109831,1740249038759,-500.0,0.0001378,2]
[354109832,1740249038769,-500.0,0.0001378,2]
[354109833,1740249038780,-807.51,0.0001378,2]
[354109834,1740249038789,-455.09280904,0.0001378,2]
[354109835,1740249038798,-203.669399,0.0001378,2]
[354109836,1740249038808,-203.669399,0.0001378,2]
[354109837,1740249038817,-500.0,0.0001378,2]
[354109838,1740249038827,-500.0,0.0001378,2]
[354109839,1740249038836,-203.669399,0.0001378,2]
[354109840,1740249038846,-203.669399,0.0001378,2]
[354109841,1740249038855,-500.0,0.0001378,2]
[354109842,1740249038864,-151.0,0.0001378,2]
[354109843,1740249038874,-500.0,0.0001378,2]
[354109844,1740249038883,-151.0,0.0001378,2]
[354109845,1740249038893,-500.0,0.0001378,2]
[354109846,1740249038903,-544.98,0.0001378,2]
[354109847,1740249038912,-151.0,0.0001378,2]
[354109848,1740249038922,-188.506559,0.0001378,2]
[354109849,1740249038931,-500.0,0.0001378,2]
[354109850,1740249038940,-3271.85,0.0001378,2]
[354109851,1740249038949,-246.058179,0.0001378,2]
[354109852,1740249038958,-246.058179,0.0001378,2]
[354109853,1740249038971,-351.37715922,0.0001378,2]
[354109854,1740249038981,-500.0,0.0001378,2]
[354109855,1740249038990,-500.0,0.0001378,2]
[354109856,1740249038999,-319.3379246,0.0001378,2]
[354109857,1740249039008,-246.058179,0.0001378,2]
[354109858,1740249039019,-246.058179,0.0001378,2]
[354109859,1740249039027,-500.0,0.0001378,2]
[354109860,1740249039037,-500.0,0.0001378,2]
[354109861,1740249039046,-500.0,0.0001378,2]
[354109862,1740249039055,-504.47,0.0001378,2]
[354109863,1740249039065,-500.0,0.0001378,2]
[354109864,1740249039074,-500.0,0.0001378,2]
[354109865,1740249039083,-500.0,0.0001378,2]
[354109866,1740249039092,-500.0,0.0001378,2]
[354109867,1740249039102,-389.18078044,0.0001378,2]
[354109868,1740249039192,-110.81921956,0.0001378,2]
[354109869,1740249039202,-1248.39,0.0001378,2]
[354109870,1740249039211,-4.65078344,0.0001378,2]
[354109871,1740249039226,-495.34921656,0.0001378,2]
[354109872,1740249039235,-500.0,0.0001378,2]
[354109873,1740249039243,-500.0,0.0001378,2]
[354109874,1740249039252,-148.36192925,0.0001378,2]
[354109875,1740249039264,-351.63807075,0.0001378,2]
[354109876,1740249039273,-321.13314502,0.0001378,2]
[354109877,1740249039282,-500.0,0.0001378,2]
[354109878,1740249039291,-500.0,0.0001378,2]
[354109879,1740249039300,-500.0,0.0001378,2]
[354109880,1740249039309,-9371.63,0.0001378,2]
[354109881,1740249039318,-500.0,0.0001378,2]
[354109882,1740249039326,-500.0,0.0001378,2]
[354109883,1740249039336,-1158.21,0.0001378,2]
[354109884,1740249039345,-3879.22,0.0001378,2]
[354109885,1740249039355,-151.0,0.0001378,2]
[354109887,1740249039364,-500.0,0.0001378,2]
[354109888,1740249039373,-500.0,0.0001378,2]
[354109889,1740249039383,-877.3,0.0001378,2]
[354109890,1740249039392,-500.0,0.0001378,2]
[354109891,1740249039401,-982.29,0.0001378,2]
[354109892,1740249039410,-500.0,0.0001378,2]
[354109893,1740249039420,-500.0,0.0001378,2]
[354109894,1740249039429,-501.20679744,0.0001378,2]
[354109895,1740249039438,-500.0,0.0001378,2]
[354109896,1740249039447,-500.0,0.0001378,2]
[354109897,1740249039456,-500.0,0.0001378,2]
[354109898,1740249039466,-151.0,0.0001378,2]
[354109899,1740249039475,-151.0,0.0001378,2]
[354109900,1740249039484,-500.0,0.0001378,2]
[354109901,1740249039492,-500.0,0.0001378,2]
[354109902,1740249039501,-500.0,0.0001378,2]
[354109903,1740249039510,-151.0,0.0001378,2]
[354109904,1740249039519,-151.0,0.0001378,2]
[354109905,1740249039529,-500.0,0.0001378,2]
[354109906,1740249039538,-500.0,0.0001378,2]
[354109907,1740249039547,-500.0,0.0001378,2]
[354109908,1740249039556,-151.0,0.000138,2]
[354109909,1740249039566,-520.83,0.0001386,2]
[354109910,1740249039575,-554.54,0.0001386,2]
[354109911,1740249039584,-520.83,0.00013862,2]
[354109912,1740249039593,-554.54,0.00013862,2]
[354109913,1740249039603,-500.0,0.00013863,2]
[354109914,1740249039613,-500.0,0.00013863,2]
[354109915,1740249039622,-500.0,0.00013863,2]
[354109916,1740249039631,-305.35866934,0.00013863,2]
[354109917,1740249039641,-500.0,0.00013863,2]
[354109918,1740249039650,-500.0,0.00013863,2]
[354109919,1740249039660,-500.0,0.00013863,2]
[354109920,1740249039669,-500.0,0.00013863,2]
[354109921,1740249039679,-500.0,0.00013863,2]
[354109922,1740249039688,-500.0,0.00013863,2]
[354109923,1740249039698,-500.0,0.00013863,2]
[354109924,1740249039708,-500.0,0.00013863,2]
[354109925,1740249039718,-500.0,0.00013863,2]
[354109926,1740249039727,-500.0,0.00013863,2]
[354109927,1740249039737,-500.0,0.00013863,2]
[354109928,1740249039746,-500.0,0.00013863,2]
[354109929,1740249039755,-500.0,0.00013863,2]
[354109930,1740249039765,-500.0,0.00013863,2]
[354109931,1740249039775,-500.0,0.00013863,2]
[354109933,1740249039785,-500.0,0.00013863,2]
[354109934,1740249039794,-500.0,0.00013863,2]
[354109935,1740249039803,-500.0,0.00013863,2]
[354109936,1740249039812,-518.26042046,0.00013863,2]
[354109937,1740249039821,-500.0,0.00013863,2]
[354109938,1740249039830,-500.0,0.00013863,2]
[354109939,1740249039839,-500.0,0.00013863,2]
[354109940,1740249039848,-500.0,0.00013863,2]
[354109941,1740249039858,-500.0,0.00013863,2]
[354109942,1740249039867,-500.0,0.00013863,2]
[354109943,1740249039878,-500.0,0.00013863,2]
[354109944,1740249039887,-484.52,0.00013863,2]
[354109945,1740249039896,-500.0,0.00013863,2]
[354109946,1740249039905,-500.0,0.00013863,2]
[354109947,1740249039914,-500.0,0.00013863,2]
[354109948,1740249039924,-500.0,0.00013863,2]
[354109949,1740249039934,-500.0,0.00013863,2]
[354109950,1740249039944,-500.0,0.00013863,2]
[354109951,1740249039954,-500.0,0.00013863,2]
[354109952,1740249039963,-500.0,0.00013863,2]
[354109953,1740249039976,-435.9839853,0.00013863,2]
[354109954,1740249039986,-500.0,0.00013863,2]
[354109955,1740249039995,-500.0,0.00013863,2]
[354109956,1740249040005,-500.0,0.00013863,2]
[354109957,1740249040016,-371.26,0.00013863,2]
[354109958,1740249040026,-500.0,0.00013863,2]
[354109959,1740249040035,-500.0,0.00013863,2]
[354109960,1740249040045,-500.0,0.00013863,2]
[354109961,1740249040055,-500.0,0.00013863,2]
[354109962,1740249040064,-500.0,0.00013863,2]
[354109963,1740249040074,-500.0,0.00013863,2]
[354109964,1740249040085,-500.0,0.00013863,2]
[354109965,1740249040095,-500.0,0.00013863,2]
[354109966,1740249040104,-500.0,0.00013863,2]
[354109967,1740249040114,-500.0,0.00013863,2]
[354109968,1740249040123,-500.0,0.00013863,2]
[354109969,1740249040132,-500.0,0.00013863,2]
[354109970,1740249040142,-500.0,0.00013863,2]
[354109971,1740249040151,-151.0,0.00013863,2]
[354109972,1740249040160,-500.0,0.00013863,2]
[354109973,1740249040170,-500.0,0.00013863,2]
[354109974,1740249040179,-500.0,0.00013863,2]
[354109975,1740249040188,-151.0,0.00013863,2]
[354109976,1740249040198,-500.0,0.00013863,2]
[354109977,1740249040207,-23.07382518,0.00013863,2]
[354109978,1740249040221,-476.92617482,0.00013863,2]
[354109979,1740249040230,-11.97926129,0.00013863,2]
[354109980,1740249040702,-152.0,0.000137,2]
[354109981,1740249040712,-152.0,0.000137,2]
[354109982,1740249040722,-152.0,0.000137,2]
[354109983,1740249040731,-152.0,0.000137,2]
[354109984,1740249040741,-152.0,0.000137,2]
[354109985,1740249040750,-152.0,0.000137,2]
[354109986,1740249040759,-152.0,0.000137,2]
[354109987,1740249040769,-152.0,0.000137,2]
[354109988,1740249040779,-152.0,0.000137,2]
[354109989,1740249040788,-151.0,0.0001378,2]
[354109990,1740249040798,-151.0,0.0001378,2]
[354109991,1740249040807,-139.02073871,0.00013863,2]
[354109992,1740249040817,-151.0,0.00013863,2]
[354109993,1740249040826,-500.0,0.00013863,2]
[354109994,1740249040835,-500.0,0.00013863,2]
[354109995,1740249040845,-500.0,0.00013863,2]
[354109996,1740249040854,-343.1206831,0.00013863,2]
[354109997,1740249040866,-156.8793169,0.00013863,2]
[354109998,1740249040875,-151.0,0.00013863,2]
[354109999,1740249040885,-165.75470813,0.00013863,2]
[354110000,1740249041148,-334.24529187,0.00013863,2]
[354110001,1740249041157,-286.268639,0.00013863,2]
[354110002,1740249041167,-501.55429017,0.00013863,2]
[354110003,1740249041177,-286.268639,0.00013863,2]
[354110004,1740249041186,-500.0,0.00013863,2]
[354110005,1740249041196,-500.0,0.00013863,2]
[354110006,1740249041206,-500.0,0.00013863,2]
[354110007,1740249041215,-500.0,0.00013863,2]
[354110008,1740249041224,-151.0,0.00013863,2]
[354110009,1740249041233,-151.0,0.00013863,2]
[354110011,1740249041244,-500.0,0.00013863,2]
[354110012,1740249041253,-500.0,0.00013863,2]
[354110013,1740249041262,-151.0,0.00013863,2]
[354110014,1740249041271,-500.0,0.00013863,2]
[354110015,1740249041280,-500.0,0.00013863,2]
[354110016,1740249041289,-500.0,0.00013863,2]
[354110017,1740249041298,-151.0,0.00013863,2]
[354110018,1740249041307,-151.0,0.00013863,2]
[354110019,1740249041316,-500.0,0.00013863,2]
[354110020,1740249041326,-151.0,0.00013863,2]
[354110021,1740249041335,-151.0,0.00013863,2]
[354110022,1740249041344,-151.0,0.00013863,2]
[354110023,1740249041353,-151.0,0.00013863,2]
[354110024,1740249041362,-151.0,0.00013863,2]
[354110025,1740249041372,-500.0,0.00013863,2]
[354110026,1740249041381,-500.0,0.00013863,2]
[354110027,1740249041391,-1637.38,0.00013863,2]
[354110028,1740249041399,-536.50618767,0.00013863,2]
[354110029,1740249041409,-191.67532591,0.00013863,2]
[354110030,1740249041418,-500.0,0.00013863,2]
[354110031,1740249041428,-500.0,0.00013863,2]
[354110032,1740249041437,-500.0,0.00013863,2]
[354110033,1740249041446,-500.0,0.00013863,2]
[354110034,1740249041455,-778.8,0.00013863,2]
[354110035,1740249041464,-500.0,0.00013863,2]
[354110036,1740249041473,-500.0,0.00013863,2]
[354110037,1740249041482,-500.0,0.00013863,2]
[354110038,1740249041492,-348.042031,0.00013863,2]
[354110039,1740249041501,-348.042031,0.00013863,2]
[354110040,1740249041511,-500.0,0.00013863,2]
[354110041,1740249041521,-348.042031,0.00013863,2]
[354110042,1740249041531,-348.042031,0.00013863,2]
[354110043,1740249041540,-500.0,0.00013863,2]
[354110044,1740249041549,-500.0,0.00013863,2]
[354110045,1740249041558,-500.0,0.00013863,2]
[354110046,1740249041567,-151.0,0.00013863,2]
[354110047,1740249041576,-500.0,0.00013863,2]
[354110048,1740249041584,-500.0,0.00013863,2]
[354110049,1740249041593,-200.65064,0.00013863,2]
[354110050,1740249041602,-500.0,0.00013863,2]
[354110051,1740249041611,-500.0,0.00013863,2]
[354110052,1740249041620,-500.0,0.00013863,2]
[354110053,1740249041629,-500.0,0.00013863,2]
[354110054,1740249041638,-500.0,0.00013863,2]
[354110055,1740249041647,-500.0,0.00013863,2]
[354110056,1740249041656,-500.0,0.00013863,2]
[354110057,1740249041665,-500.0,0.00013863,2]
[354110058,1740249041674,-500.0,0.00013863,2]
[354110059,1740249041682,-500.0,0.00013863,2]
[354110060,1740249041691,-807.51,0.00013863,2]
[354110061,1740249041701,-203.669399,0.00013863,2]
[354110062,1740249041710,-500.0,0.00013863,2]
[354110063,1740249041721,-500.0,0.00013863,2]
[354110064,1740249041731,-203.669399,0.00013863,2]
[354110065,1740249041741,-500.0,0.00013863,2]
[354110066,1740249041751,-151.0,0.00013863,2]
[354110067,1740249041760,-549.0598825,0.00013863,2]
[354110068,1740249041769,-500.0,0.00013863,2]
[354110069,1740249041778,-3271.85,0.00013863,2]
[354110070,1740249041788,-246.058179,0.00013863,2]
[354110071,1740249041797,-500.0,0.00013863,2]
[354110072,1740249041806,-500.0,0.00013863,2]
[354110073,1740249041815,-246.058179,0.00013863,2]
[354110074,1740249041825,-500.0,0.00013863,2]
[354110075,1740249041834,-500.0,0.00013863,2]
[354110076,1740249041843,-500.0,0.00013863,2]
[354110077,1740249041852,-504.47,0.00013863,2]
[354110078,1740249041860,-500.0,0.00013863,2]
[354110079,1740249041870,-500.0,0.00013863,2]
[354110080,1740249041879,-500.0,0.00013863,2]
[354110081,1740249041888,-500.0,0.00013863,2]
[354110082,1740249041898,-500.0,0.00013863,2]
[354110083,1740249041909,-1248.39,0.00013863,2]
[354110084,1740249041919,-500.0,0.00013863,2]
[354110085,1740249041930,-500.0,0.00013863,2]
[354110086,1740249041939,-500.0,0.00013863,2]
[354110087,1740249041948,-500.0,0.00013863,2]
[354110088,1740249041957,-500.0,0.00013863,2]
[354110089,1740249041969,-500.0,0.00013863,2]
[354110090,1740249041980,-5739.04722387,0.00013863,2]
[354110091,1740249041995,-3632.58277613,0.00013863,2]
[354110092,1740249042005,-500.0,0.00013863,2]
[354110093,1740249042016,-500.0,0.00013863,2]
[354110094,1740249042026,-1158.21,0.00013863,2]
[354110095,1740249042036,-3879.22,0.00013863,2]
[354110096,1740249042046,-500.0,0.00013863,2]
[354110097,1740249042055,-500.0,0.00013863,2]
[354110098,1740249042065,-877.3,0.00013863,2]
[354110099,1740249042074,-500.0,0.00013863,2]
[354110100,1740249042083,-982.29,0.00013863,2]
[354110101,1740249042092,-500.0,0.00013863,2]
[354110103,1740249042101,-500.0,0.00013863,2]
[354110104,1740249042110,-500.0,0.00013863,2]
[354110105,1740249042119,-500.0,0.00013863,2]
[354110106,1740249042129,-500.0,0.00013863,2]
[354110107,1740249042138,-151.0,0.00013863,2]
[354110108,1740249042147,-500.0,0.00013863,2]
[354110109,1740249042157,-538.2,0.00013863,2]
[354110110,1740249042166,-500.0,0.00013863,2]
[354110111,1740249042176,-151.0,0.00013863,2]
[354110112,1740249042185,-435.87,0.00013863,2]
[354110113,1740249042195,-500.0,0.00013863,2]
[354110114,1740249042204,-209.858819,0.00013863,2]
[354110115,1740249042213,-151.0,0.000139,2]
[354110117,1740249042222,-520.83,0.00013943,2]
[354110118,1740249042231,-554.54,0.00013943,2]
[354110120,1740249042241,-500.0,0.00013945,2]
[354110122,1740249042250,-500.0,0.00013945,2]
[354110123,1740249042259,-500.0,0.00013945,2]
[354110124,1740249042268,-500.0,0.00013945,2]
[354110125,1740249042278,-500.0,0.00013945,2]
[354110126,1740249042287,-500.0,0.00013945,2]
[354110128,1740249042295,-500.0,0.00013945,2]
[354110130,1740249042304,-500.0,0.00013945,2]
[354110132,1740249042313,-500.0,0.00013945,2]
[354110135,1740249042322,-500.0,0.00013945,2]
[354110138,1740249042332,-500.0,0.00013945,2]
[354110141,1740249042342,-500.0,0.00013945,2]
[354110143,1740249042351,-201.48,0.00013945,2]
[354110146,1740249042360,-500.0,0.00013945,2]
[354110148,1740249042369,-500.0,0.00013945,2]
[354110149,1740249042378,-500.0,0.00013945,2]
[354110150,1740249042388,-500.0,0.00013945,2]
[354110151,1740249042398,-151.0,0.00013945,2]
[354110152,1740249042408,-500.0,0.00013945,2]
[354110153,1740249042417,-287.355,0.00013945,2]
[354110155,1740249042426,-151.0,0.00013945,2]
[354110156,1740249042436,-160.59,0.00013945,2]
[354110157,1740249042446,-500.0,0.00013945,2]
[354110158,1740249042456,-331.65,0.00013945,2]
[354110159,1740249042465,-500.0,0.00013945,2]
[354110160,1740249042475,-500.0,0.00013945,2]
[354110161,1740249042486,-500.0,0.00013945,2]
[354110162,1740249042496,-500.0,0.00013945,2]
[354110163,1740249042505,-256.6,0.00013945,2]
[354110164,1740249042513,-500.0,0.00013945,2]
[354110165,1740249042522,-500.0,0.00013945,2]
[354110166,1740249042531,-1637.38,0.00013945,2]
[354110167,1740249042540,-279.62676795,0.00013945,2]
[354110170,1740249042630,-500.0,0.00013945,2]
[354110171,1740249042639,-539.78,0.00013945,2]
[354110172,1740249042648,-500.0,0.00013945,2]
[354110173,1740249042658,-778.8,0.00013945,2]
[354110174,1740249042667,-500.0,0.00013945,2]
[354110175,1740249042676,-500.0,0.00013945,2]
[354110176,1740249042686,-500.0,0.00013945,2]
[354110177,1740249042695,-500.0,0.00013945,2]
[354110178,1740249042704,-500.0,0.00013945,2]
[354110179,1740249042714,-500.0,0.00013945,2]
[354110180,1740249042724,-247.62,0.00013945,2]
[354110181,1740249042734,-500.0,0.00013945,2]
[354110182,1740249042743,-500.0,0.00013945,2]
[354110183,1740249042753,-500.0,0.00013945,2]
[354110184,1740249042762,-500.0,0.00013945,2]
[354110185,1740249042772,-807.51,0.00013945,2]
[354110186,1740249042782,-500.0,0.00013945,2]
[354110187,1740249042791,-500.0,0.00013945,2]
[354110188,1740249042801,-500.0,0.00013945,2]
[354110189,1740249042810,-178.89916,0.00013945,2]
[354110190,1740249042822,-272.79523414,0.00013945,2]
[354110191,1740249042832,-3271.85,0.00013945,2]
[354110192,1740249042842,-500.0,0.00013945,2]
[354110193,1740249042851,-500.0,0.00013945,2]
[354110194,1740249042861,-500.0,0.00013945,2]
[354110195,1740249042871,-500.0,0.00013945,2]
[354110196,1740249042881,-504.47,0.00013945,2]
[354110197,1740249042890,-500.0,0.00013945,2]
[354110198,1740249042900,-500.0,0.00013945,2]
[354110199,1740249042910,-500.0,0.00013945,2]
[354110200,1740249042919,-500.0,0.00013945,2]
[354110201,1740249042928,-500.0,0.00013945,2]
[354110202,1740249042938,-1248.39,0.00013945,2]
[354110203,1740249042947,-500.0,0.00013945,2]
[354110204,1740249042956,-586.32,0.00013945,2]
[354110205,1740249042967,-500.0,0.00013945,2]
[354110206,1740249042981,-9371.63,0.00013945,2]
[354110207,1740249042990,-500.0,0.00013945,2]
[354110208,1740249043000,-1158.21,0.00013945,2]
[354110209,1740249043010,-3879.22,0.00013945,2]
[354110210,1740249043020,-500.0,0.00013945,2]
[354110211,1740249043029,-877.3,0.00013945,2]
[354110212,1740249043039,-500.0,0.00013945,2]
[354110213,1740249043050,-982.29,0.00013945,2]
[354110214,1740249043059,-500.0,0.00013945,2]
[354110215,1740249043069,-500.0,0.00013945,2]
[354110216,1740249043078,-207.846989,0.00013945,2]
[354110217,1740249043087,-500.0,0.00013945,2]
[354110218,1740249043097,-151.0,0.00013945,2]
[354110219,1740249043107,-500.0,0.00013945,2]
[354110220,1740249043116,-151.0,0.00014,2]
[354110221,1740249043125,-520.83,0.00014025,2]
[354110222,1740249043135,-554.54,0.00014025,2]
[354110223,1740249043144,-500.0,0.00014027,2]
[354110224,1740249043154,-500.0,0.00014027,2]
[354110225,1740249043163,-500.0,0.00014027,2]
[354110226,1740249043172,-151.0,0.00014027,2]
[354110227,1740249043182,-500.0,0.00014027,2]
[354110228,1740249043191,-500.0,0.00014027,2]
[354110229,1740249043200,-287.08,0.00014027,2]
[354110230,1740249043210,-353.05,0.00014027,2]
[354110231,1740249043219,-165.22,0.00014027,2]
[354110232,1740249043229,-247.84,0.00014027,2]
[354110233,1740249043238,-500.0,0.00014027,2]
[354110234,1740249043247,-500.0,0.00014027,2]
[354110235,1740249043256,-441.79,0.00014027,2]
[354110236,1740249043265,-483.49,0.00014027,2]
[354110237,1740249043274,-500.0,0.00014027,2]
[354110238,1740249043284,-151.0,0.00014027,2]
[354110239,1740249043293,-151.0,0.00014027,2]
[354110240,1740249043303,-151.0,0.00014027,2]
[354110241,1740249043312,-365.56,0.00014027,2]
[354110242,1740249043322,-151.0,0.00014027,2]
[354110243,1740249043331,-151.0,0.00014027,2]
[354110244,1740249043340,-159.804753,0.00014027,2]
[354110245,1740249043350,-151.0,0.00014027,2]
[354110246,1740249043360,-151.0,0.00014027,2]
[354110247,1740249043370,-1637.38,0.00014027,2]
[354110248,1740249043380,-778.8,0.00014027,2]
[354110249,1740249043389,-348.042031,0.00014027,2]
[354110250,1740249043398,-348.042031,0.00014027,2]
[354110251,1740249043409,-500.0,0.00014027,2]
[354110252,1740249043419,-151.0,0.00014027,2]
[354110253,1740249043428,-500.0,0.00014027,2]
[354110254,1740249043438,-500.0,0.00014027,2]
[354110255,1740249043447,-500.0,0.00014027,2]
[354110256,1740249043456,-186.04,0.00014027,2]
[354110257,1740249043466,-500.0,0.00014027,2]
[354110258,1740249043476,-807.51,0.00014027,2]
[354110259,1740249043485,-203.669399,0.00014027,2]
[354110260,1740249043495,-500.0,0.00014027,2]
[354110261,1740249043504,-419.92,0.00014027,2]
[354110262,1740249043514,-203.669399,0.00014027,2]
[354110263,1740249043523,-500.0,0.00014027,2]
[354110264,1740249043535,-3271.85,0.00014027,2]
[354110265,1740249043545,-246.058179,0.00014027,2]
[354110266,1740249043556,-246.058179,0.00014027,2]
[354110267,1740249043565,-500.0,0.00014027,2]
[354110268,1740249043575,-504.47,0.00014027,2]
[354110269,1740249043584,-500.0,0.00014027,2]
[354110270,1740249043593,-219.97,0.00014027,2]
[354110271,1740249043603,-1248.39,0.00014027,2]
[354110272,1740249043612,-500.0,0.00014027,2]
[354110273,1740249043622,-9371.63,0.00014027,2]
[354110274,1740249043631,-1158.21,0.00014027,2]
[354110275,1740249043641,-3879.22,0.00014027,2]
[354110276,1740249043651,-500.0,0.00014027,2]
[354110277,1740249043661,-877.3,0.00014027,2]
[354110278,1740249043671,-500.0,0.00014027,2]
[354110279,1740249043681,-982.29,0.00014027,2]
[354110280,1740249043691,-554.48,0.00014027,2]
[354110281,1740249043700,-500.0,0.00014027,2]
[354110282,1740249043710,-500.0,0.00014027,2]
[354110283,1740249043720,-500.0,0.00014027,2]
[354110284,1740249043730,-716.68070055,0.0001405,2]
[354110285,1740249043740,-165.641956,0.0001405,2]
[354110286,1740249043750,-520.83,0.00014107,2]
[354110287,1740249043760,-554.54,0.00014107,2]
[354110288,1740249043768,-500.0,0.00014109,2]
[354110289,1740249043778,-500.0,0.00014109,2]
[354110290,1740249043788,-225.04,0.00014109,2]
[354110291,1740249043797,-500.0,0.00014109,2]
[354110292,1740249043807,-500.0,0.00014109,2]
[354110293,1740249043817,-480.8,0.00014109,2]
[354110294,1740249043826,-500.0,0.00014109,2]
[354110295,1740249043836,-151.0,0.00014109,2]
[354110296,1740249043846,-500.0,0.00014109,2]
[354110297,1740249043855,-211.296908,0.00014109,2]
[354110298,1740249043864,-286.268639,0.00014109,2]
[354110299,1740249043873,-286.268639,0.00014109,2]
[354110300,1740249043882,-151.0,0.00014109,2]
[354110301,1740249043892,-1637.38,0.00014109,2]
[354110302,1740249043901,-778.8,0.00014109,2]
[354110303,1740249043911,-500.0,0.00014109,2]
[354110304,1740249043920,-500.0,0.00014109,2]
[354110305,1740249043930,-442.26,0.00014109,2]